[Event "Gibraltar Masters 18th"]
[Site "Gibraltar"]
[Date "2020.01.23"]
[Round "3.52"]
[White "Gordon, Stephen J"]
[Black "Lujan, Carolina"]
[Result "0-1"]
[ECO "A37"]
[WhiteElo "2504"]
[BlackElo "2330"]
[PlyCount "123"]
[EventDate "2020.01.21"]
[EventType "swiss"]
[EventRounds "10"]
[EventCountry "GGB"]
[SourceTitle "BritBase"]
[Source "John Saunders"]
[SourceDate "2021.06.05"]
[SourceVersion "1"]
[SourceVersionDate "2021.06.05"]
[SourceQuality "1"]
[TimeControl "40/100:0"]
[WhiteClock "0:01:05"]
[BlackClock "0:01:58"]

1. c4 {[%emt 0:00:00]} c5 {[%emt 0:00:00]} 2. g3 {[%emt 0:00:00]} g6 {[%emt 0:
00:00]} 3. Bg2 {[%emt 0:00:00]} Bg7 {[%emt 0:00:00]} 4. Nc3 {[%emt 0:00:00]}
Nc6 {[%emt 0:00:00]} 5. Nf3 {[%emt 0:00:00]} e6 {[%emt 0:00:00]} 6. d4 {
[%emt 0:00:00]} cxd4 {[%emt 0:00:00]} 7. Nb5 {[%emt 0:00:00]} d5 {[%emt 0:00:
00]} 8. cxd5 {[%emt 0:00:00]} Qa5+ {[%emt 0:00:00]} 9. Nd2 {[%emt 0:00:00]}
Qxb5 {[%emt 0:00:00]} 10. dxc6 {[%emt 0:00:00]} Ne7 {[%emt 0:00:00]} 11. a4 {
[%emt 0:00:00]} Qb6 {[%emt 0:00:00]} 12. b3 {[%emt 0:00:00]} O-O {[%emt 0:00:
00]} 13. Nc4 {[%emt 0:00:00]} Qc7 14. Bf4 e5 15. Bxe5 Bxe5 16. Nxe5 Qxe5 {
[%emt 0:00:00]} 17. cxb7 Bxb7 18. Bxb7 {[%emt 0:00:00]} d3 {[%emt 0:00:00]} 19.
Ra2 {[%emt 0:00:00]} Rab8 {[%emt 0:00:00]} 20. Bf3 {[%emt 0:00:00]} dxe2 {
[%emt 0:00:00]} 21. Qxe2 {[%emt 0:00:00]} Qc3+ {[%emt 0:00:00]} 22. Kf1 {
[%emt 0:00:00]} Rxb3 {[%emt 0:00:00]} 23. Kg2 {[%emt 0:00:00]} Nf5 {[%emt 0:00:
00]} 24. Bd5 {[%emt 0:00:00]} Nh4+ {[%emt 0:00:00]} 25. Kh3 {[%emt 0:00:00]}
Rb4 {[%emt 0:00:00]} 26. Rc2 {[%emt 0:00:00]} Qf6 {[%emt 0:00:00]} 27. Rd1 {
[%emt 0:00:00]} Qf5+ {[%emt 0:00:00]} 28. g4 {[%emt 0:00:00]} Qf4 {[%emt 0:00:
00]} 29. f3 {[%emt 0:00:00]} g5 {[%emt 0:00:00]} 30. Qd2 {[%emt 0:00:00]} Ng6 {
[%emt 0:00:00]} 31. Qxf4 {[%emt 0:00:00]} Nxf4+ {[%emt 0:00:00]} 32. Kg3 {
[%emt 0:00:00]} Rxa4 {[%emt 0:00:00]} 33. h4 {[%emt 0:00:00]} gxh4+ {[%emt 0:
00:00]} 34. Kf2 {[%emt 0:00:00]} Kg7 {[%emt 0:00:00]} 35. Bc6 {[%emt 0:00:00]}
Ra3 {[%emt 0:00:00]} 36. Be4 {[%emt 0:00:00]} Nh3+ {[%emt 0:00:00]} 37. Kg2 {
[%emt 0:00:00]} Nf4+ {[%emt 0:00:00]} 38. Kf2 {[%emt 0:00:00]} Re8 {[%emt 0:00:
00]} 39. Rd7 {[%emt 0:00:01]} Nh3+ {[%emt 0:00:00]} 40. Kg2 {[%emt 0:00:00]}
Ng5 {[%emt 0:00:00]} 41. Bd5 {[%emt 0:00:00]} a5 {[%emt 0:00:00]} 42. f4 {
[%emt 0:00:00]} h3+ {[%emt 0:00:00]} 43. Kh2 {[%emt 0:00:00]} Nf3+ {[%emt 0:00:
00]} 44. Bxf3 {[%emt 0:00:00]} Rxf3 {[%emt 0:00:00]} 45. Ra2 {[%emt 0:00:00]}
Re4 {[%emt 0:00:00]} 46. Ra7 {[%emt 0:00:00]} Rexf4 {[%emt 0:00:00]} 47. R7xa5
{[%emt 0:00:00]} Rxg4 {[%emt 0:00:00]} 48. Rh5 {[%emt 0:00:00]} Rgg3 {[%emt 0:
00:00]} 49. Rb5 {[%emt 0:00:00]} Kg6 {[%emt 0:00:00]} 50. Ra6+ {[%emt 0:00:00]}
f6 {[%emt 0:00:00]} 51. Ra2 {[%emt 0:00:00]} Rg5 {[%emt 0:00:00]} 52. Rb7 {
[%emt 0:00:00]} h6 {[%emt 0:00:00]} 53. Rba7 {[%emt 0:00:00]} Kh5 {[%emt 0:00:
00]} 54. R7a3 {[%emt 0:00:00]} Rg2+ {[%emt 0:00:00] Rd2 Rgf2+ Rxf2 Rxa3} 55.
Rxg2 {[%emt 0:00:00]} f5 {[%emt 0:00:00]} 56. Rg8 {[%emt 0:00:00]} Kh4 {
[%emt 0:00:00]} 57. Rf8 {[%emt 0:00:00] Ra2+ Kg1 Rg2+ Kh1 Rg5 Kh2} Kg4 {
[%emt 0:00:00]} 58. Rf6 {[%emt 0:00:00]} h5 {[%emt 0:00:00] Ra6 f4} 59. Ra8 {
[%emt 0:00:00] Rf5 Ra4 Rd5 Ra8 Rd2+ Kg1 Kg3 Rg8+ Kf3 Rf8} h4 {[%emt 0:00:00]}
60. Rf7 {[%emt 0:01:30] Ke3 Re7+ Kf3 Rf7 Rd1+ Kh2 Ke3 Re7+ Kf2 Kxh3 f3 Kh2 Kf1}
Re3 {[%emt 0:01:41] f2} 61. Re8 {[%emt 0:00:00]} Re1 {[%emt 0:00:00]} 62. Ra8 {
[%emt 0:00:44] Ke2 Ra2+ Ke3 Ra3+ Kd4} 0-1

[Event "Gibraltar Masters 18th"]
[Site "Gibraltar"]
[Date "2020.01.23"]
[Round "3.53"]
[White "Petrov, Vladimir Sergeev"]
[Black "Kosteniuk, Alexandra"]
[Result "1-0"]
[ECO "B19"]
[WhiteElo "2353"]
[BlackElo "2504"]
[PlyCount "75"]
[EventDate "2020.01.21"]
[EventType "swiss"]
[EventRounds "10"]
[EventCountry "GGB"]
[SourceTitle "BritBase"]
[Source "John Saunders"]
[SourceDate "2021.06.05"]
[SourceVersion "1"]
[SourceVersionDate "2021.06.05"]
[SourceQuality "1"]
[TimeControl "40/100:0"]
[WhiteClock "0:05:40"]
[BlackClock "0:54:04"]

1. e4 {[%emt 0:00:00]} c6 {[%emt 0:00:00]} 2. d4 {[%emt 0:00:00]} d5 {[%emt 0:
00:00]} 3. Nc3 {[%emt 0:00:00]} dxe4 {[%emt 0:00:00]} 4. Nxe4 {[%emt 0:00:00]}
Bf5 {[%emt 0:00:00]} 5. Ng3 {[%emt 0:00:00]} Bg6 {[%emt 0:00:00]} 6. h4 {
[%emt 0:00:00]} h6 {[%emt 0:00:00]} 7. Nf3 {[%emt 0:00:00]} Nd7 {[%emt 0:00:00]
} 8. h5 {[%emt 0:00:00]} Bh7 {[%emt 0:00:00]} 9. Bd3 {[%emt 0:00:00]} Bxd3 {
[%emt 0:00:00]} 10. Qxd3 {[%emt 0:00:00]} e6 {[%emt 0:00:00]} 11. Bd2 {[%emt 0:
00:00]} Bd6 {[%emt 0:00:00]} 12. Ne4 {[%emt 0:00:00]} Bc7 {[%emt 0:00:00]} 13.
O-O-O {[%emt 0:00:00]} Ngf6 {[%emt 0:00:00]} 14. c4 {[%emt 0:00:00]} b5 {
[%emt 0:00:00]} 15. cxb5 {[%emt 0:00:00]} O-O {[%emt 0:00:00]} 16. bxc6 {
[%emt 0:00:00]} Nxe4 {[%emt 0:00:00]} 17. Qxe4 {[%emt 0:00:00]} Nf6 {[%emt 0:
00:00]} 18. Qc2 {[%emt 0:00:00]} Qd5 {[%emt 0:00:00]} 19. Kb1 {[%emt 0:00:00]}
Rfb8 {[%emt 0:00:00]} 20. Rc1 {[%emt 0:00:00]} Rb5 {[%emt 0:00:00]} 21. Qc4 {
[%emt 0:00:00]} Qf5+ {[%emt 0:00:00]} 22. Qc2 {[%emt 0:00:00]} Ne4 23. Rhe1 {
[%emt 0:00:00]} Rab8 {[%emt 0:00:00]} 24. b3 Nxd2+ 25. Nxd2 Qxf2 26. Nf3 Qg3
27. Ne5 a5 28. Nd7 Ra8 29. Qc3 Qd6 30. Re5 Rb4 31. Qc5 a4 32. Rc4 Rxc4 33. bxc4
Ra6 34. Qxd6 Bxd6 35. d5 Ra5 36. Kc2 a3 37. c5 {[%emt 0:00:00]} Rb5 {[%emt 0:
00:00]} 38. Re2 {[%emt 0:00:00]} 1-0

[Event "Gibraltar Masters 18th"]
[Site "Gibraltar"]
[Date "2020.01.23"]
[Round "3.54"]
[White "Borocz, Istvan"]
[Black "Tan, Zhongyi"]
[Result "1/2-1/2"]
[ECO "B96"]
[WhiteElo "2337"]
[BlackElo "2493"]
[PlyCount "109"]
[EventDate "2020.01.21"]
[EventType "swiss"]
[EventRounds "10"]
[EventCountry "GGB"]
[SourceTitle "BritBase"]
[Source "John Saunders"]
[SourceDate "2021.06.05"]
[SourceVersion "1"]
[SourceVersionDate "2021.06.05"]
[SourceQuality "1"]
[TimeControl "40/100:0"]
[WhiteClock "0:40:35"]
[BlackClock "1:36:18"]

1. e4 {[%emt 0:00:00]} c5 {[%emt 0:00:00]} 2. Nf3 {[%emt 0:00:00]} d6 {[%emt 0:
00:00]} 3. d4 {[%emt 0:00:00]} cxd4 {[%emt 0:00:00]} 4. Nxd4 {[%emt 0:00:00]}
Nf6 {[%emt 0:00:00]} 5. Nc3 {[%emt 0:00:00]} a6 {[%emt 0:00:00]} 6. Bg5 {
[%emt 0:00:00]} e6 {[%emt 0:00:00]} 7. f4 {[%emt 0:00:00]} h6 {[%emt 0:00:00]}
8. Bxf6 {[%emt 0:00:00]} Qxf6 {[%emt 0:00:00]} 9. Qd2 {[%emt 0:00:00]} g5 {
[%emt 0:00:00]} 10. g3 {[%emt 0:00:00]} gxf4 {[%emt 0:00:00]} 11. gxf4 {
[%emt 0:00:00]} Qh4+ {[%emt 0:00:00]} 12. Qf2 {[%emt 0:00:00]} Be7 {[%emt 0:00:
00]} 13. Rg1 {[%emt 0:00:00]} Qxf2+ {[%emt 0:00:00]} 14. Kxf2 {[%emt 0:00:00]}
Nc6 {[%emt 0:00:00]} 15. Nb3 {[%emt 0:00:00]} Bf6 {[%emt 0:00:00]} 16. Bd3 {
[%emt 0:00:00]} Ke7 {[%emt 0:00:00]} 17. Nd1 {[%emt 0:00:00]} a5 {[%emt 0:00:
00]} 18. a4 {[%emt 0:00:00]} Nb4 {[%emt 0:00:00]} 19. Ke2 {[%emt 0:00:00]} Bd7
{[%emt 0:00:00]} 20. c3 {[%emt 0:00:00]} Nxd3 {[%emt 0:00:00]} 21. Kxd3 {
[%emt 0:00:00]} Rhb8 {[%emt 0:00:00]} 22. Nd4 {[%emt 0:00:00]} Bxd4 {[%emt 0:
00:00]} 23. Kxd4 {[%emt 0:00:00]} b5 24. axb5 Bxb5 25. b4 Bc6 26. Nf2 axb4 27.
Rxa8 Bxa8 28. Rb1 b3 29. c4 Rh8 {[%emt 0:00:00]} 30. Nd3 {[%emt 0:00:00]} Bc6 {
[%emt 0:00:00]} 31. Nc1 {[%emt 0:00:00]} Ba4 {[%emt 0:00:00]} 32. Kc3 {[%emt 0:
00:00]} Rg8 {[%emt 0:00:00]} 33. Nxb3 {[%emt 0:00:00]} Rg4 {[%emt 0:00:00]} 34.
Rf1 {[%emt 0:00:00]} Bxb3 {[%emt 0:00:00]} 35. Kxb3 {[%emt 0:00:00]} Rg2 {
[%emt 0:00:00]} 36. Kc3 {[%emt 0:00:00]} Rxh2 {[%emt 0:00:00]} 37. Kd4 {
[%emt 0:00:00]} h5 {[%emt 0:00:00]} 38. c5 {[%emt 0:00:00]} dxc5+ {[%emt 0:00:
00]} 39. Kxc5 {[%emt 0:00:00]} h4 {[%emt 0:00:00]} 40. Kd4 {[%emt 0:00:00]} h3
{[%emt 0:00:00]} 41. Ke3 {[%emt 0:00:00]} Ra2 {[%emt 0:00:00]} 42. Kf3 {
[%emt 0:00:00]} h2 {[%emt 0:00:00]} 43. Kg3 {[%emt 0:00:00]} Kd6 {[%emt 0:00:
00]} 44. Rd1+ {[%emt 0:00:00]} Kc5 {[%emt 0:00:00]} 45. e5 {[%emt 0:00:00]}
Ra3+ {[%emt 0:00:00]} 46. Kg4 {[%emt 0:00:00]} Ra4 {[%emt 0:00:00]} 47. Rh1 {
[%emt 0:00:00]} Ra2 {[%emt 0:00:00]} 48. Kg3 {[%emt 0:00:00]} Kd4 {[%emt 0:00:
00]} 49. Rxh2 {[%emt 0:00:00]} Rxh2 {[%emt 0:00:00]} 50. Kxh2 {[%emt 0:00:00]}
Ke4 {[%emt 0:00:00]} 51. Kg3 {[%emt 0:00:00]} Ke3 {[%emt 0:00:00]} 52. Kg4 {
[%emt 0:00:00]} Kf2 {[%emt 0:00:00]} 53. f5 {[%emt 0:00:00]} Ke3 {[%emt 0:00:
00]} 54. fxe6 {[%emt 0:00:00]} fxe6 {[%emt 0:00:00]} 55. Kg3 {[%emt 0:00:00]}
1/2-1/2

[Event "Gibraltar Masters 18th"]
[Site "Gibraltar"]
[Date "2020.01.23"]
[Round "3.55"]
[White "Garcia Martin, Marta"]
[Black "Bilguun, Sumiya"]
[Result "1/2-1/2"]
[ECO "B28"]
[WhiteElo "2317"]
[BlackElo "2486"]
[PlyCount "92"]
[EventDate "2020.01.21"]
[EventType "swiss"]
[EventRounds "10"]
[EventCountry "GGB"]
[SourceTitle "BritBase"]
[Source "John Saunders"]
[SourceDate "2021.06.05"]
[SourceVersion "1"]
[SourceVersionDate "2021.06.05"]
[SourceQuality "1"]
[TimeControl "40/100:0"]
[WhiteClock "0:45:24"]
[BlackClock "1:10:15"]

1. e4 {[%emt 0:00:00]} c5 {[%emt 0:00:00]} 2. Nf3 {[%emt 0:00:00]} a6 {[%emt 0:
00:00]} 3. c3 {[%emt 0:00:00]} d5 {[%emt 0:00:00]} 4. exd5 {[%emt 0:00:00]}
Qxd5 {[%emt 0:00:00]} 5. d4 {[%emt 0:00:00]} Nf6 {[%emt 0:00:00]} 6. Be2 {
[%emt 0:00:00]} cxd4 {[%emt 0:00:00]} 7. cxd4 {[%emt 0:00:00]} e6 {[%emt 0:00:
00]} 8. Nc3 {[%emt 0:00:00]} Qd6 {[%emt 0:00:00]} 9. Ne5 {[%emt 0:00:00]} Nc6 {
[%emt 0:00:00]} 10. Nxc6 {[%emt 0:00:00]} Qxc6 {[%emt 0:00:00]} 11. O-O {
[%emt 0:00:00]} Bd6 {[%emt 0:00:00]} 12. Bg5 {[%emt 0:00:00]} Qc7 {[%emt 0:00:
00]} 13. g3 {[%emt 0:00:00]} Be7 {[%emt 0:00:00]} 14. Bf3 O-O 15. Qb3 h6 16.
Be3 {[%emt 0:00:00]} Qa5 {[%emt 0:00:00]} 17. d5 exd5 18. Nxd5 {[%emt 0:00:00]}
Nxd5 {[%emt 0:00:00]} 19. Bxd5 {[%emt 0:00:00]} Qb5 {[%emt 0:00:00]} 20. Qxb5 {
[%emt 0:00:00]} axb5 {[%emt 0:00:00]} 21. Rfd1 {[%emt 0:00:00]} Be6 {[%emt 0:
00:00]} 22. Bxe6 {[%emt 0:00:00]} fxe6 {[%emt 0:00:00]} 23. Rd7 {[%emt 0:00:00]
} Bf6 {[%emt 0:00:00]} 24. Rxb7 {[%emt 0:00:00]} Bxb2 {[%emt 0:00:00]} 25. Rb1
{[%emt 0:00:00]} Rxa2 {[%emt 0:00:00]} 26. Rxb5 {[%emt 0:00:00]} Bc3 {[%emt 0:
00:00]} 27. Rb6 {[%emt 0:00:00]} e5 {[%emt 0:00:00]} 28. Rb8 {[%emt 0:00:00]}
Bd4 {[%emt 0:00:00]} 29. Rxf8+ {[%emt 0:00:00]} Kxf8 {[%emt 0:00:00]} 30. Re1 {
[%emt 0:00:00]} Kf7 {[%emt 0:00:00]} 31. Kg2 {[%emt 0:00:00]} Kf6 {[%emt 0:00:
00]} 32. Kf3 {[%emt 0:00:00]} Kf5 {[%emt 0:00:00]} 33. g4+ {[%emt 0:00:00]} Kf6
{[%emt 0:00:00]} 34. h4 {[%emt 0:00:00]} Ra4 {[%emt 0:00:00]} 35. Kg3 {[%emt 0:
00:33]} Ra3 {[%emt 0:00:00]} 36. Kf3 {[%emt 0:00:00]} h5 {[%emt 0:00:00]} 37.
Rg1 {[%emt 0:00:17]} Bxe3 {[%emt 0:00:00]} 38. fxe3 {[%emt 0:00:00]} hxg4+ {
[%emt 0:00:00]} 39. Rxg4 {[%emt 0:00:00]} g6 {[%emt 0:00:00]} 40. Rg1 {[%emt 0:
00:06]} Kf5 {[%emt 0:00:00]} 41. Rg5+ {[%emt 0:01:19]} Kf6 {[%emt 0:00:00]} 42.
Rg1 {[%emt 0:00:00]} Ra7 {[%emt 0:00:00]} 43. Rg4 {[%emt 0:00:00]} Ra1 {
[%emt 0:00:00]} 44. Rb4 {[%emt 0:00:00]} Kf5 {[%emt 0:00:00]} 45. e4+ {[%emt 0:
00:00]} Kf6 {[%emt 0:00:00]} 46. Rb6+ {[%emt 0:00:00]} Kf7 {[%emt 0:00:00]}
1/2-1/2

[Event "Gibraltar Masters 18th"]
[Site "Gibraltar"]
[Date "2020.01.23"]
[Round "3.56"]
[White "Heinemann, Josefine"]
[Black "Gines Esteo, Pedro Antonio"]
[Result "1/2-1/2"]
[ECO "B19"]
[WhiteElo "2317"]
[BlackElo "2482"]
[PlyCount "113"]
[EventDate "2020.01.21"]
[EventType "swiss"]
[EventRounds "10"]
[EventCountry "GGB"]
[SourceTitle "BritBase"]
[Source "John Saunders"]
[SourceDate "2021.06.05"]
[SourceVersion "1"]
[SourceVersionDate "2021.06.05"]
[SourceQuality "1"]
[TimeControl "40/100:0"]
[WhiteClock "1:24:42"]
[BlackClock "0:02:57"]

1. e4 {[%emt 0:00:00]} c6 {[%emt 0:00:00]} 2. d4 {[%emt 0:00:00]} d5 {[%emt 0:
00:00]} 3. Nd2 {[%emt 0:00:00]} dxe4 {[%emt 0:00:00]} 4. Nxe4 {[%emt 0:00:00]}
Bf5 {[%emt 0:00:00]} 5. Ng3 {[%emt 0:00:00]} Bg6 {[%emt 0:00:00]} 6. h4 {
[%emt 0:00:00]} h6 {[%emt 0:00:00]} 7. Nf3 {[%emt 0:00:00]} Nd7 {[%emt 0:00:00]
} 8. Bd3 {[%emt 0:00:00]} Bxd3 {[%emt 0:00:00]} 9. Qxd3 {[%emt 0:00:00]} e6 {
[%emt 0:00:00]} 10. Bd2 {[%emt 0:00:00]} Ngf6 {[%emt 0:00:00]} 11. O-O-O {
[%emt 0:00:00]} a5 {[%emt 0:00:00]} 12. Qe2 {[%emt 0:00:00]} Bb4 {[%emt 0:00:
00]} 13. Kb1 {[%emt 0:00:00]} O-O {[%emt 0:00:00]} 14. c3 {[%emt 0:00:00]} Be7
{[%emt 0:00:00]} 15. Nf1 {[%emt 0:00:00]} a4 {[%emt 0:00:00]} 16. g4 {[%emt 0:
00:00]} Qa5 {[%emt 0:00:00]} 17. c4 {[%emt 0:00:00]} Bb4 {[%emt 0:00:00]} 18.
Bxb4 {[%emt 0:00:00]} Qxb4 {[%emt 0:00:00]} 19. g5 {[%emt 0:00:00]} Nh5 20.
gxh6 g6 21. a3 Qa5 22. Ng3 Nxg3 23. fxg3 Qh5 {[%emt 0:00:00]} 24. Qe3 {[%emt 0:
00:00]} Ra5 25. Rhg1 Nf6 {[%emt 0:00:00]} 26. Ne5 {[%emt 0:00:00]} Ng4 {
[%emt 0:00:00]} 27. Nxg4 {[%emt 0:00:00]} Qxg4 {[%emt 0:00:00]} 28. d5 {
[%emt 0:00:00]} cxd5 {[%emt 0:00:00]} 29. Qc3 {[%emt 0:00:00]} Qf5+ {[%emt 0:
00:00]} 30. Ka1 {[%emt 0:00:00]} d4 {[%emt 0:00:00]} 31. Qxd4 {[%emt 0:00:00]}
Qe5 {[%emt 0:00:00]} 32. g4 {[%emt 0:00:00]} Qxd4 {[%emt 0:00:00]} 33. Rxd4 {
[%emt 0:00:00]} g5 {[%emt 0:00:00]} 34. hxg5 {[%emt 0:00:00]} Rxg5 {[%emt 0:00:
00]} 35. Rd7 {[%emt 0:00:00]} f5 {[%emt 0:00:00]} 36. Rg7+ {[%emt 0:00:00]}
Rxg7 {[%emt 0:00:00]} 37. hxg7 {[%emt 0:00:00]} Rf7 {[%emt 0:00:00]} 38. gxf5 {
[%emt 0:00:00]} exf5 {[%emt 0:00:00]} 39. Kb1 {[%emt 0:00:00]} Rxg7 {[%emt 0:
00:38]} 40. Rf1 {[%emt 0:00:00]} Rf7 {[%emt 0:00:14]} 41. Kc2 {[%emt 0:00:00]}
Kg7 {[%emt 0:01:17]} 42. Kc3 {[%emt 0:00:00]} Kf6 {[%emt 0:00:00]} 43. Kb4 {
[%emt 0:00:00]} Ke5 {[%emt 0:00:00]} 44. Kxa4 {[%emt 0:00:00]} Kd4 {[%emt 0:00:
00]} 45. Kb5 {[%emt 0:00:00]} f4 {[%emt 0:00:00]} 46. c5 {[%emt 0:00:00]} f3 {
[%emt 0:00:00]} 47. Kb6 {[%emt 0:00:00]} Rf6+ {[%emt 0:00:00]} 48. Kxb7 {
[%emt 0:00:00]} Kxc5 {[%emt 0:00:00]} 49. b4+ {[%emt 0:00:00]} Kc4 {[%emt 0:00:
00]} 50. Rf2 {[%emt 0:00:00]} Kb5 {[%emt 0:00:00]} 51. Kc7 {[%emt 0:00:00]}
Rc6+ {[%emt 0:00:00]} 52. Kd7 {[%emt 0:00:00]} Rc3 {[%emt 0:00:00]} 53. Kd6 {
[%emt 0:00:00]} Re3 {[%emt 0:00:00]} 54. Kd5 {[%emt 0:00:00]} Rxa3 {[%emt 0:00:
00]} 55. Ke4 {[%emt 0:00:00]} Kxb4 {[%emt 0:00:00]} 56. Rxf3 {[%emt 0:00:00]}
Rxf3 {[%emt 0:00:00]} 57. Kxf3 {[%emt 0:00:00]} 1/2-1/2

[Event "Gibraltar Masters 18th"]
[Site "Gibraltar"]
[Date "2020.01.23"]
[Round "3.57"]
[White "Abergel, Thal"]
[Black "Pein, Malcolm"]
[Result "1-0"]
[ECO "D02"]
[WhiteElo "2478"]
[BlackElo "2310"]
[PlyCount "43"]
[EventDate "2020.01.21"]
[EventType "swiss"]
[EventRounds "10"]
[EventCountry "GGB"]
[SourceTitle "BritBase"]
[Source "John Saunders"]
[SourceDate "2021.06.05"]
[SourceVersion "1"]
[SourceVersionDate "2021.06.05"]
[SourceQuality "1"]
[TimeControl "40/100:0"]

1. Nf3 d5 2. g3 Nc6 3. d4 Bf5 4. Bg2 Nb4 5. Na3 e6 6. c3 Nc6 7. Qb3 Rb8 8. Nh4
Bg4 9. h3 Bh5 10. e4 dxe4 11. Bxe4 Be7 12. Qb5 Nf6 13. Bxc6+ bxc6 14. Qxc6+ Nd7
15. Nc4 Bxh4 16. gxh4 O-O 17. Rg1 Qxh4 18. Qxd7 Qe4+ 19. Ne3 Qd3 20. Ng4 Kh8
21. Qxc7 {[%emt 0:03:14]} f5 {[%emt 0:02:29]} 22. Qxg7+ {[%emt 0:00:19]} 1-0

[Event "Gibraltar Masters 18th"]
[Site "Gibraltar"]
[Date "2020.01.24"]
[Round "4.1"]
[White "Cheparinov, Ivan"]
[Black "Chigaev, Maksim"]
[Result "1-0"]
[ECO "D87"]
[WhiteElo "2686"]
[BlackElo "2616"]
[PlyCount "59"]
[EventDate "2020.01.21"]
[EventType "swiss"]
[EventRounds "10"]
[EventCountry "GGB"]
[SourceTitle "BritBase"]
[Source "John Saunders"]
[SourceDate "2021.06.05"]
[SourceVersion "1"]
[SourceVersionDate "2021.06.05"]
[SourceQuality "1"]
[TimeControl "40/100:0"]
[WhiteClock "0:30:53"]
[BlackClock "0:29:54"]

1. d4 {[%emt 0:00:00]} Nf6 {[%emt 0:00:00]} 2. c4 {[%emt 0:00:00]} g6 {[%emt 0:
00:00]} 3. Nc3 {[%emt 0:00:00]} d5 {[%emt 0:00:00]} 4. cxd5 {[%emt 0:00:00]}
Nxd5 {[%emt 0:00:00]} 5. e4 {[%emt 0:00:00]} Nxc3 {[%emt 0:00:00]} 6. bxc3 {
[%emt 0:00:00]} Bg7 {[%emt 0:00:00]} 7. Bc4 {[%emt 0:00:00]} c5 {[%emt 0:00:00]
} 8. Ne2 {[%emt 0:00:00]} O-O {[%emt 0:00:00]} 9. O-O {[%emt 0:00:00]} Nc6 {
[%emt 0:00:00]} 10. Be3 {[%emt 0:00:00]} b6 {[%emt 0:00:00]} 11. h4 {[%emt 0:
00:00]} e6 {[%emt 0:00:00]} 12. h5 {[%emt 0:00:00]} Qh4 {[%emt 0:00:00]} 13.
hxg6 {[%emt 0:00:00]} hxg6 {[%emt 0:00:00]} 14. f3 {[%emt 0:00:00]} Bb7 {
[%emt 0:00:00]} 15. Qd2 {[%emt 0:00:00]} cxd4 {[%emt 0:00:00]} 16. cxd4 {
[%emt 0:00:00]} Qe7 {[%emt 0:00:00]} 17. Rad1 {[%emt 0:00:00]} Rac8 {[%emt 0:
00:00]} 18. Bg5 {[%emt 0:00:00]} Qd6 {[%emt 0:00:00]} 19. Bb5 {[%emt 0:00:00]}
a6 {[%emt 0:00:00]} 20. Bxc6 {[%emt 0:00:00]} Qxc6 {[%emt 0:00:00]} 21. Qe3 {
[%emt 0:00:00]} Qb5 {[%emt 0:00:00]} 22. Rd2 {[%emt 0:00:00]} Rfe8 {[%emt 0:00:
00]} 23. e5 {[%emt 0:00:00]} Rc4 {[%emt 0:00:00]} 24. Kf2 {[%emt 0:00:00]} f6 {
[%emt 0:00:00]} 25. exf6 {[%emt 0:00:00]} Bf8 {[%emt 0:00:00]} 26. Qf4 {
[%emt 0:00:00]} Qf5 {[%emt 0:00:00]} 27. Qh4 {[%emt 0:00:00]} e5 {[%emt 0:00:
00]} 28. Rh1 {[%emt 0:00:00]} Kf7 {[%emt 0:00:00]} 29. Qh7+ {[%emt 0:00:00]}
Ke6 {[%emt 0:00:00]} 30. Qg8+ {[%emt 0:00:00]} 1-0

[Event "Gibraltar Masters 18th"]
[Site "Gibraltar"]
[Date "2020.01.24"]
[Round "4.2"]
[White "Basso, Pier Luigi"]
[Black "Durarbayli, Vasif"]
[Result "1/2-1/2"]
[ECO "E17"]
[WhiteElo "2600"]
[BlackElo "2625"]
[PlyCount "49"]
[EventDate "2020.01.21"]
[EventType "swiss"]
[EventRounds "10"]
[EventCountry "GGB"]
[SourceTitle "BritBase"]
[Source "John Saunders"]
[SourceDate "2021.06.05"]
[SourceVersion "1"]
[SourceVersionDate "2021.06.05"]
[SourceQuality "1"]
[TimeControl "40/100:0"]
[WhiteClock "0:31:11"]
[BlackClock "0:45:47"]

1. d4 {[%emt 0:00:00]} Nf6 {[%emt 0:00:00]} 2. c4 {[%emt 0:00:00]} e6 {[%emt 0:
00:00]} 3. Nf3 {[%emt 0:00:00]} b6 {[%emt 0:00:00]} 4. g3 {[%emt 0:00:00]} Bb7
{[%emt 0:00:00]} 5. Bg2 {[%emt 0:00:00]} Be7 {[%emt 0:00:00]} 6. O-O {[%emt 0:
00:00]} O-O {[%emt 0:00:00]} 7. Re1 {[%emt 0:00:00]} a5 {[%emt 0:00:00]} 8. Bg5
{[%emt 0:00:00]} Na6 {[%emt 0:00:00]} 9. Nc3 {[%emt 0:00:00]} Ne4 {[%emt 0:00:
00]} 10. Nxe4 {[%emt 0:00:00]} Bxe4 {[%emt 0:00:00]} 11. Bxe7 {[%emt 0:00:00]}
Qxe7 {[%emt 0:00:00]} 12. Ne5 {[%emt 0:00:00]} Bxg2 {[%emt 0:00:00]} 13. Kxg2 {
[%emt 0:00:00]} c5 {[%emt 0:00:00]} 14. e4 {[%emt 0:00:00]} cxd4 {[%emt 0:00:
00]} 15. Qxd4 {[%emt 0:00:00]} d6 {[%emt 0:00:00]} 16. Nf3 {[%emt 0:00:00]} Nb4
{[%emt 0:00:00]} 17. Re2 {[%emt 0:00:00]} Qc7 {[%emt 0:00:00]} 18. Rd1 {
[%emt 0:00:00]} Rfd8 {[%emt 0:00:00]} 19. b3 {[%emt 0:00:00]} h6 {[%emt 0:00:
00]} 20. Red2 {[%emt 0:00:00]} Rab8 {[%emt 0:00:00]} 21. a4 {[%emt 0:00:00]}
Rd7 {[%emt 0:00:00]} 22. Ne5 {[%emt 0:00:00]} Rdd8 {[%emt 0:00:00]} 23. Nf3 {
[%emt 0:00:00]} Rd7 {[%emt 0:00:00]} 24. Ne5 {[%emt 0:00:00]} Rdd8 {[%emt 0:00:
00]} 25. Nf3 1/2-1/2